bitfinex/quotes_BTCUSD_20250624
["timestamp","ask_amount","ask_price","bid_price","bid_amount"]
[1750773029314,0.87499793,105170.0,105160.0,0.58846236]
[1750773029547,0.87499784,105170.0,105160.0,0.58846236]
[1750773029750,0.86549006,105170.0,105160.0,0.58846236]
[1750773029960,0.88450589,105170.0,105160.0,0.58846236]
[1750773030171,0.35901547,105170.0,105160.0,0.58846236]
[1750773030371,0.34950769,105170.0,105160.0,0.58846236]
[1750773030788,0.35901547,105170.0,105160.0,0.58846236]
[1750773030982,1.08418304,105170.0,105160.0,0.33833569]
[1750773031217,1.07467526,105170.0,105160.0,0.56936509]
[1750773031427,1.0651673,105170.0,105160.0,0.37894656]
[1750773031665,1.0651673,105170.0,105160.0,0.39796491]
[1750773031867,1.0651673,105170.0,105160.0,0.39796509]
[1750773032076,1.0651673,105170.0,105160.0,0.40747422]
[1750773032286,1.0651673,105170.0,105160.0,0.18876018]
[1750773032512,1.0651673,105170.0,105160.0,0.09325832]
[1750773033367,1.0651673,105170.0,105160.0,0.2834447]
[1750773033581,1.0651673,105170.0,105160.0,0.09325832]
[1750773034017,1.0651673,105170.0,105160.0,0.29295401]
[1750773034230,1.0651673,105170.0,105160.0,0.30246314]
[1750773034437,1.0937293,105170.0,105160.0,0.31197218]
[1750773034850,1.0937293,105170.0,105160.0,0.32148104]
[1750773035279,1.0937293,105170.0,105160.0,0.33098972]
[1750773035709,0.38757756,105170.0,105160.0,0.42649158]
[1750773035934,0.34,105170.0,105160.0,0.72649158]
[1750773036446,0.34,105170.0,105160.0,0.87649158]
[1750773037080,0.34950769,105170.0,105160.0,0.87649158]
[1750773037300,0.34,105170.0,105160.0,0.87649158]
[1750773038142,0.3495076,105170.0,105160.0,0.87649158]
[1750773038784,0.34,105170.0,105160.0,0.87649158]
[1750773039602,0.88450607,105170.0,105160.0,0.42649158]
[1750773040046,0.88450598,105170.0,105160.0,0.42649158]
[1750773040269,0.89401421,105170.0,105160.0,0.42649158]
[1750773040478,0.88450598,105170.0,105160.0,0.42649158]
[1750773040699,0.87499793,105170.0,105160.0,0.42649158]
[1750773041329,0.86549006,105170.0,105160.0,0.42649158]
[1750773041750,0.85598237,105170.0,105160.0,0.41522472]
[1750773042178,0.3495076,105170.0,105160.0,0.41522472]
[1750773042404,1.06516685,105170.0,105160.0,0.0247]
[1750773042622,1.14113665,105170.0,105160.0,0.002]
[1750773043046,1.47230745,105170.0,105160.0,0.002]
[1750773043263,1.3838375,105170.0,105160.0,0.002]
[1750773045426,1.38880461,105170.0,105160.0,0.002]
[1750773046558,1.24121396,105170.0,105160.0,0.22039569]
[1750773046766,1.231706,105170.0,105160.0,0.22958638]
[1750773047162,1.07013396,105170.0,105160.0,0.24860482]
[1750773047403,1.07964228,105170.0,105160.0,0.24860482]
[1750773047620,1.07964228,105170.0,105160.0,0.25811395]
[1750773047836,0.87996567,105170.0,105160.0,0.25811395]
[1750773048261,1.07964228,105170.0,105160.0,0.22958638]
[1750773048471,1.07964228,105170.0,105160.0,0.24860482]
[1750773048676,1.07964228,105170.0,105160.0,0.25811386]
[1750773049104,0.87996513,105170.0,105160.0,0.27713158]
[1750773049314,0.89898159,105170.0,105160.0,0.26762299]
[1750773049530,0.89898159,105170.0,105160.0,0.27713185]
[1750773049531,0.88947327,105170.0,105160.0,0.27713185]
[1750773049735,1.07964219,105170.0,105160.0,0.22958638]
[1750773049935,1.07013423,105170.0,105160.0,0.22958638]
[1750773050348,1.07013423,105170.0,105160.0,0.23909569]
[1750773050565,1.07013423,105170.0,105160.0,0.22958638]
[1750773050993,1.06062609,105170.0,105160.0,0.0207]
[1750773051203,1.06062609,105170.0,105160.0,0.002]
[1750773052217,1.07516694,105170.0,105160.0,0.002]
[1750773053191,1.12516694,105170.0,105160.0,0.002]
[1750773053737,1.13216694,105170.0,105160.0,0.002]
[1750773054197,1.35170475,105170.0,105160.0,0.002]
[1750773054359,1.24622009,105150.0,105140.0,0.0213]
[1750773054563,1.41714009,105150.0,105140.0,0.02176144]
[1750773055028,1.24115772,105150.0,105140.0,0.02176144]
[1750773055175,1.90264195,105150.0,105140.0,0.00246144]
[1750773055377,0.20926408,105130.0,105120.0,0.0403]
[1750773055585,0.89612645,105130.0,105120.0,0.0218384]
[1750773056148,1.26470045,105130.0,105120.0,0.0218384]
[1750773056559,1.26470045,105130.0,105120.0,0.0023384]
[1750773056766,1.30720716,105130.0,105120.0,0.0023384]
[1750773056978,1.35720716,105130.0,105120.0,0.0023384]
[1750773057191,1.36420716,105130.0,105120.0,0.0023384]
[1750773057413,0.55431235,105120.0,105110.0,0.0002]
[1750773057632,1.07029472,105120.0,105110.0,0.00033846]
[1750773057851,1.12029472,105120.0,105110.0,0.00033846]
[1750773058730,1.23610653,105120.0,105110.0,0.01933846]
[1750773058951,1.22659387,105120.0,105110.0,0.03813846]
[1750773060306,1.22659387,105120.0,105110.0,0.01933846]
[1750773061608,1.22655387,105120.0,105110.0,0.03813846]
[1750773061820,1.24557919,105120.0,105110.0,0.23792915]
[1750773062067,1.23606671,105120.0,105110.0,0.03813846]
[1750773063165,0.54928434,105120.0,105110.0,0.22841531]
[1750773063376,1.06526671,105120.0,105110.0,0.03813846]
[1750773063598,1.06526671,105120.0,105110.0,0.01933846]
[1750773064480,1.06526671,105120.0,105110.0,0.03783846]
[1750773064913,1.25056756,105120.0,105110.0,0.00033846]
[1750773065098,1.39606942,105120.0,105110.0,0.00033846]
[1750773065349,1.12980756,105120.0,105110.0,0.00033846]
[1750773065559,1.30056756,105120.0,105110.0,0.01883846]
[1750773066032,1.30156756,105120.0,105110.0,0.00033846]
[1750773066257,1.30256756,105120.0,105110.0,0.00033846]
[1750773066487,1.44476369,105120.0,105110.0,0.00033846]
[1750773066705,1.39806942,105120.0,105110.0,0.00033846]
[1750773069204,1.39806942,105120.0,105110.0,0.01843846]
[1750773069860,0.55128434,105120.0,105110.0,0.22691531]
[1750773070077,1.23794671,105120.0,105110.0,0.03663846]
[1750773070303,1.23794671,105120.0,105110.0,0.23642897]
[1750773070521,1.22843396,105120.0,105110.0,0.23642915]
[1750773070974,1.22843396,105120.0,105110.0,0.2459429]
[1750773071189,1.22843396,105120.0,105110.0,0.26496995]
[1750773071369,1.22843396,105120.0,105110.0,0.03663846]
[1750773072493,1.05775396,105120.0,105110.0,0.22691531]
[1750773072680,1.05775396,105120.0,105110.0,0.23642915]
[1750773072915,1.05775396,105120.0,105110.0,0.03663846]
[1750773073559,1.12229481,105120.0,105110.0,0.03663846]
[1750773073785,1.29293481,105120.0,105110.0,0.00033846]
[1750773073996,0.00951565,105090.0,105080.0,0.2841742]
[1750773074207,1.07484101,105090.0,105080.0,0.5604897]
[1750773074458,1.05581108,105090.0,105080.0,0.56049113]
[1750773074705,1.05581108,105090.0,105080.0,0.5892075]
[1750773074914,1.07498467,105090.0,105080.0,0.5892075]
[1750773075124,0.88467161,105090.0,105080.0,0.5987236]
[1750773075300,0.88467161,105090.0,105080.0,0.60823952]
[1750773075301,1.09401515,105090.0,105080.0,0.60823952]
[1750773075732,1.08450005,105090.0,105080.0,0.5922075]
[1750773076022,1.07498467,105090.0,105080.0,0.5972075]
[1750773076378,1.10356767,105090.0,105080.0,0.60672378]
[1750773076580,1.10356767,105090.0,105080.0,0.61623979]
[1750773076994,1.11308332,105090.0,105080.0,0.60672378]
[1750773077237,1.11308332,105090.0,105080.0,0.62442378]
[1750773077666,1.09405229,105090.0,105080.0,0.60539113]
[1750773077880,1.09405229,105090.0,105080.0,0.62442378]
[1750773078085,1.10356767,105090.0,105080.0,0.62442378]
[1750773078340,1.10356767,105090.0,105080.0,0.61490759]
[1750773078589,1.10356767,105090.0,105080.0,0.62442378]
[1750773078801,0.92276953,105090.0,105080.0,0.64345571]
[1750773079441,0.91325406,105090.0,105080.0,0.64345571]
[1750773079676,0.39727114,105090.0,105080.0,0.59369571]
[1750773079889,0.40678634,105090.0,105080.0,0.64305571]
[1750773080103,0.41630172,105090.0,105080.0,0.64305571]
[1750773080310,0.90373841,105090.0,105080.0,0.64305571]
[1750773080527,0.92276853,105090.0,105080.0,0.64305571]
[1750773081456,0.37824121,105090.0,105080.0,0.79305571]
[1750773081898,0.39727105,105090.0,105080.0,0.79305571]
[1750773082118,0.38775604,105090.0,105080.0,0.79305571]
[1750773082331,0.37824121,105090.0,105080.0,0.79305571]
[1750773083615,0.38775613,105090.0,105080.0,0.79305571]
[1750773083827,0.9227688,105090.0,105080.0,0.79305571]
[1750773084256,0.93228427,105090.0,105080.0,0.79305571]
[1750773084482,0.9227688,105090.0,105080.0,0.79305571]
[1750773085159,0.39727114,105090.0,105080.0,0.79305571]
[1750773085384,0.91325351,105090.0,105080.0,0.79305571]
[1750773085610,0.40678643,105090.0,105080.0,0.79305571]
[1750773085827,0.40678634,105090.0,105080.0,0.79305571]
[1750773086234,0.39727114,105090.0,105080.0,0.79305571]
[1750773086445,0.39727123,105090.0,105080.0,0.79305571]
[1750773086648,0.37824121,105090.0,105080.0,0.79305571]
[1750773088286,0.34965821,105090.0,105080.0,0.79305571]
[1750773089969,0.34965821,105090.0,105080.0,0.96349571]
[1750773090567,0.028579,105100.0,105090.0,0.75655892]
[1750773090782,0.002,105110.0,105090.0,0.85206078]
[1750773090983,0.01151302,105110.0,105100.0,0.67243995]
[1750773091233,0.342,105110.0,105100.0,0.67243995]
[1750773091624,0.370575,105110.0,105100.0,0.67243995]
[1750773092585,0.370575,105110.0,105100.0,0.67343995]
[1750773092830,0.342,105110.0,105100.0,0.67243995]
[1750773093036,0.342,105110.0,105100.0,0.67743995]
[1750773093253,0.002,105110.0,105100.0,0.67743995]
[1750773094318,0.002,105110.0,105100.0,0.68043995]
[1750773094520,0.002,105110.0,105100.0,0.67543995]
[1750773094723,0.01,105110.0,105100.0,0.67243995]
[1750773095135,0.515,105110.0,105100.0,0.67243995]
[1750773095344,1.015,105110.0,105100.0,0.67243995]
[1750773098724,1.015,105110.0,105100.0,0.65203995]
[1750773098937,1.015,105110.0,105100.0,0.87167995]
[1750773099380,1.015,105110.0,105100.0,0.87163995]
[1750773102012,1.015,105110.0,105100.0,1.65216317]
[1750773102238,1.015,105110.0,105100.0,1.75216317]
[1750773102455,0.9762,105110.0,105100.0,1.75216317]
[1750773102880,0.9852,105110.0,105100.0,1.75216317]
[1750773103300,0.9792,105110.0,105100.0,1.75216317]
[1750773103509,0.9912,105110.0,105100.0,1.90316317]
[1750773103735,1.0012,105110.0,105100.0,1.90416317]
[1750773104407,1.0012,105110.0,105100.0,1.91379811]
[1750773105059,1.0012,105110.0,105100.0,1.90416317]
[1750773107465,1.0012,105110.0,105100.0,2.24416317]
[1750773107670,0.9643,105110.0,105100.0,2.24416317]
[1750773108085,0.94884277,105110.0,105100.0,2.24416317]
[1750773108295,0.91194277,105110.0,105100.0,2.77085758]
[1750773108911,0.91194277,105110.0,105100.0,2.82085758]
[1750773109123,0.91194277,105110.0,105100.0,1.56929284]
[1750773109326,0.91194277,105110.0,105100.0,1.60443521]
[1750773109535,0.91194277,105110.0,105100.0,2.15443521]
[1750773109951,0.91194277,105110.0,105100.0,2.10439521]
[1750773110371,0.91194277,105110.0,105100.0,2.15439521]
[1750773111173,0.91194277,105110.0,105100.0,1.93527521]
[1750773111387,0.91194277,105110.0,105100.0,1.3595808]
[1750773111629,0.91194277,105110.0,105100.0,1.5787008]
[1750773112263,0.91194277,105110.0,105100.0,1.56411995]
[1750773113923,0.91194277,105110.0,105100.0,1.57342288]
[1750773114579,0.91194277,105110.0,105100.0,0.68335995]
[1750773114791,0.91194277,105110.0,105100.0,0.89473995]
[1750773114995,0.98791257,105110.0,105100.0,1.06469995]
[1750773115955,0.97791257,105110.0,105100.0,1.06369995]
[1750773116384,1.01261257,105110.0,105100.0,1.06369995]
[1750773116646,1.38517804,105110.0,105100.0,0.39650186]
[1750773116864,2.25037095,105110.0,105100.0,0.002]
[1750773117086,2.78089417,105110.0,105100.0,0.002]
[1750773117298,2.78089417,105110.0,105080.0,0.001]
[1750773117299,1.1010261,105090.0,105080.0,0.001]
[1750773117519,1.1769959,105090.0,105080.0,0.001]
[1750773117951,1.36149675,105090.0,105080.0,0.001]
[1750773118983,1.36249675,105090.0,105080.0,0.005]
[1750773120491,1.36249675,105090.0,105080.0,0.001]
[1750773120492,1.36149675,105090.0,105080.0,0.001]
[1750773120716,1.50699861,105090.0,105080.0,0.001]
[1750773120941,0.76146595,105070.0,105060.0,0.05128]
[1750773121156,0.9459268,105070.0,105060.0,0.01120699]
[1750773121784,0.9459268,105070.0,105060.0,0.01118629]
[1750773122220,0.9469268,105070.0,105060.0,0.01818629]
[1750773122913,1.00441084,105070.0,105060.0,0.01818629]
[1750773123349,1.34441084,105070.0,105060.0,0.00933802]
[1750773123552,1.34341084,105070.0,105060.0,0.00233802]
[1750773123978,1.34541084,105070.0,105060.0,0.01633802]
[1750773124402,0.64496762,105070.0,105060.0,0.01633802]
[1750773124614,0.43558404,105070.0,105060.0,0.65220728]
[1750773124820,1.13436727,105070.0,105060.0,0.36633802]
[1750773125038,1.16986727,105070.0,105060.0,0.56622369]
[1750773125265,0.97951798,105070.0,105060.0,0.58525978]
[1750773125514,1.16035035,105070.0,105060.0,0.01633802]
[1750773125729,1.1748912,105070.0,105060.0,0.01633802]
[1750773128888,1.3447712,105070.0,105060.0,0.01633802]
[1750773129360,1.49027306,105070.0,105060.0,0.01633802]
[1750773130244,0.58994547,105050.0,105040.0,0.002]
[1750773130468,1.88725207,105050.0,105040.0,0.002]
[1750773130711,0.5899645,105040.0,105030.0,0.0002]
[1750773130938,1.25144873,105040.0,105030.0,0.0002]
[1750773131157,1.30144873,105040.0,105030.0,0.0002]
[1750773133114,1.30244873,105040.0,105030.0,0.0032]
[1750773133741,1.30344873,105040.0,105030.0,0.0042]
[1750773134174,1.47328873,105040.0,105030.0,0.0042]
[1750773134455,1.47825584,105040.0,105030.0,0.0042]
[1750773134885,1.42825584,105040.0,105030.0,0.0195236]
[1750773135116,0.58994268,105030.0,105020.0,0.0022]
[1750773135335,1.23882691,105030.0,105020.0,0.0022]
[1750773136446,1.23982691,105030.0,105020.0,0.00666189]
[1750773136660,1.29082691,105030.0,105020.0,0.01266189]
[1750773136870,1.31943291,105030.0,105020.0,0.01266189]
[1750773137085,1.48931291,105030.0,105020.0,0.01266189]
[1750773137913,1.27487105,105030.0,105020.0,0.01266189]
[1750773138117,1.2894119,105030.0,105020.0,0.01266189]
[1750773138329,1.27487105,105030.0,105020.0,0.01266189]
[1750773138535,1.25637105,105030.0,105020.0,0.01266189]
[1750773138738,0.74038868,105030.0,105020.0,0.01266189]
[1750773138945,1.25637105,105030.0,105020.0,0.01266189]
[1750773139364,1.08653105,105030.0,105020.0,0.01266189]
[1750773139572,1.08653105,105030.0,105020.0,0.45803486]
[1750773139573,0.04012645,105030.0,105020.0,0.45803486]
[1750773139784,0.76557249,105030.0,105020.0,0.03903006]
[1750773139999,0.78213114,105030.0,105020.0,0.03902934]
[1750773140214,1.13667199,105030.0,105020.0,0.03902934]
[1750773140630,1.13667199,105030.0,105020.0,0.03905964]
[1750773141271,1.13667199,105030.0,105020.0,0.03905961]
[1750773141922,1.11867199,105030.0,105020.0,0.22949952]
[1750773142153,0.38012672,105030.0,105020.0,0.23902133]
[1750773142386,1.14529289,105030.0,105020.0,0.03905961]
[1750773142643,1.29079475,105030.0,105020.0,0.03905961]
[1750773142874,1.29079475,105030.0,105000.0,0.0022]
[1750773142875,0.59874406,105010.0,105000.0,0.0022]
[1750773143105,1.92286829,105010.0,105000.0,0.01102188]
[1750773144242,1.92386829,105010.0,105000.0,0.0130429]
[1750773144751,1.93348577,105010.0,105000.0,0.01304307]
[1750773146760,1.93348577,105010.0,105000.0,0.01306431]
[1750773147411,1.93848577,105010.0,105000.0,0.01406431]
[1750773148107,1.96641741,105010.0,105000.0,0.01406431]
[1750773148402,2.48239978,105010.0,105000.0,0.01406431]
[1750773148635,1.96641741,105010.0,105000.0,0.01406431]
[1750773149102,1.96641741,105010.0,105000.0,0.01406828]
[1750773149786,1.96641741,105010.0,105000.0,0.0052]
[1750773150024,1.96641741,105010.0,105000.0,0.01406828]
[1750773150496,0.77556634,104990.0,104980.0,0.002]
[1750773150722,0.77556634,104990.0,104960.0,0.002]
[1750773150723,0.64009781,104970.0,104960.0,0.002]
[1750773150989,0.54008063,104960.0,104940.0,0.002]
[1750773151253,0.54008063,104960.0,104940.0,0.21178192]
[1750773151254,0.53503806,104950.0,104940.0,0.21178192]
[1750773151501,0.55413317,104950.0,104940.0,0.2117821]
[1750773151735,0.76375669,104950.0,104940.0,0.20225294]
[1750773151946,0.028623,104950.0,104940.0,0.36344146]
[1750773152160,0.35313474,104950.0,104940.0,0.81344146]
[1750773152375,0.34,104950.0,104940.0,0.81344146]
[1750773152594,0.34,104950.0,104940.0,0.81844146]
[1750773152810,0.342,104950.0,104940.0,0.81844146]
[1750773153018,0.87703769,104950.0,104940.0,0.81844146]
[1750773153230,0.90562208,104950.0,104940.0,0.81844165]
[1750773153447,0.89609356,104950.0,104940.0,1.00963026]
[1750773153657,0.93568849,104950.0,104940.0,1.00963026]
[1750773153872,1.12625615,104950.0,104940.0,0.34772369]
[1750773154092,0.90710483,104950.0,104940.0,0.57601276]
[1750773154308,0.88804914,104950.0,104940.0,0.61337026]
[1750773154523,0.91663308,104950.0,104940.0,0.22631063]
[1750773154767,1.10720001,104950.0,104940.0,0.23451691]
[1750773155201,1.10720001,104950.0,104940.0,0.22498813]
[1750773155614,1.08814432,104950.0,104940.0,0.02487388]
[1750773155827,1.08814432,104950.0,104940.0,0.23451738]
[1750773156059,1.0976723,104950.0,104940.0,0.24404627]
[1750773156267,1.0976723,104950.0,104940.0,0.02487388]
[1750773156470,1.08814432,104950.0,104940.0,0.02487388]
[1750773156687,1.08814432,104950.0,104940.0,0.23451729]
[1750773156890,1.08814432,104950.0,104940.0,0.24404627]
[1750773157103,1.08814432,104950.0,104940.0,0.25357516]
[1750773157373,1.08814432,104950.0,104940.0,0.24404627]
[1750773157581,1.60412669,104950.0,104940.0,0.02487388]
[1750773157755,1.08814432,104950.0,104940.0,0.0071386]
[1750773158176,1.64729154,104950.0,104940.0,0.0071386]
[1750773159126,1.66509154,104950.0,104940.0,0.0071386]
[1750773159331,1.68399154,104950.0,104940.0,0.0071386]
[1750773160795,1.13130917,104950.0,104940.0,0.20725285]
[1750773161011,1.11676832,104950.0,104940.0,0.21678183]
[1750773161261,0.62485469,104950.0,104940.0,0.0071386]
[1750773161479,2.32962129,104950.0,104940.0,0.0071386]
[1750773162320,2.27962129,104950.0,104940.0,0.0071386]
[1750773162529,1.24765655,104950.0,104940.0,0.0071386]
[1750773162740,2.49946129,104950.0,104940.0,0.0071386]
[1750773163730,1.66813706,104950.0,104940.0,0.0071386]
[1750773163935,1.63363706,104950.0,104940.0,0.0071386]
[1750773164121,1.80347706,104950.0,104940.0,0.0071386]
[1750773164315,2.31945943,104950.0,104940.0,0.0071386]
[1750773164520,2.31645943,104950.0,104940.0,0.0021386]
[1750773164720,2.31745943,104950.0,104940.0,0.0051386]
[1750773164972,1.80247706,104950.0,104940.0,0.0051386]
[1750773165623,1.11665469,104950.0,104940.0,0.0051386]
[1750773165762,1.61809621,104950.0,104940.0,0.20525294]
[1750773165963,1.61809621,104950.0,104940.0,0.2147821]
[1750773166190,1.61809621,104950.0,104940.0,0.22431117]
[1750773166396,1.61809621,104950.0,104940.0,0.19572369]
[1750773166598,1.61809621,104950.0,104940.0,0.20525285]
[1750773166803,1.09258586,104950.0,104940.0,0.0051386]
[1750773167003,1.59904007,104950.0,104940.0,0.20525285]
[1750773167205,1.59904007,104950.0,104940.0,0.0051386]
[1750773167426,1.59904007,104950.0,104940.0,0.20525285]
[1750773167809,1.59904007,104950.0,104940.0,0.21478183]
[1750773168028,1.59904007,104950.0,104940.0,0.19572369]
[1750773168230,1.60856823,104950.0,104940.0,0.21478174]
[1750773168403,1.60856823,104950.0,104940.0,0.23238174]
[1750773168823,1.60856823,104950.0,104940.0,0.22285285]
[1750773169021,1.60856823,104950.0,104940.0,0.24191072]
[1750773169325,1.42752919,104950.0,104940.0,0.26096823]
[1750773169528,0.60425663,104950.0,104940.0,0.26096768]
[1750773169736,0.94425663,104950.0,104940.0,0.26096768]
[1750773169921,0.05969077,104950.0,104940.0,0.54350954]
[1750773170134,0.40921829,104950.0,104940.0,0.54350954]
[1750773170377,0.40921829,104950.0,104940.0,0.37366954]
[1750773170559,0.39969077,104950.0,104940.0,0.59234954]
[1750773170901,0.002,104950.0,104940.0,0.59234954]
[1750773171535,0.002,104950.0,104940.0,0.89234954]
[1750773171737,0.002,104950.0,104940.0,0.59234954]
[1750773171940,0.002,104950.0,104940.0,0.37366954]
[1750773172134,0.002,104950.0,104940.0,0.59234954]
[1750773172577,0.002,104950.0,104940.0,0.82110954]
[1750773173650,0.01767455,104950.0,104940.0,0.81810954]
[1750773173907,0.01967455,104950.0,104940.0,0.97310954]
[1750773174465,0.02848677,104950.0,104940.0,0.96691403]
[1750773175537,0.01081222,104950.0,104940.0,1.11691403]
[1750773177143,0.01083347,104950.0,104940.0,1.11691403]
[1750773177594,0.01083589,104950.0,104940.0,1.11691403]
[1750773178223,0.51083589,104950.0,104940.0,1.11691403]
[1750773178856,0.51083439,104950.0,104940.0,1.11691403]
[1750773179273,0.502,104950.0,104940.0,1.11691403]
[1750773181584,0.502,104950.0,104940.0,0.89823403]
[1750773181801,1.03634535,104950.0,104940.0,1.11687403]
[1750773182015,1.02681773,104950.0,104940.0,1.11687403]
[1750773182244,1.04587315,104950.0,104940.0,1.11687403]
[1750773182455,1.06354176,104950.0,104940.0,1.11687403]
[1750773182666,0.52850325,104950.0,104940.0,1.11687403]
[1750773182871,0.51083464,104950.0,104940.0,1.11687403]
[1750773183289,0.51083464,104950.0,104940.0,1.08207403]
[1750773183290,0.52989015,104950.0,104940.0,1.08207403]
[1750773183493,1.03634463,104950.0,104940.0,1.08207403]
[1750773183722,0.51083464,104950.0,104940.0,1.08207403]
[1750773183949,1.02681701,104950.0,104940.0,1.08207403]
[1750773184168,0.51083464,104950.0,104940.0,1.08207403]
[1750773184385,0.502,104950.0,104940.0,1.11857403]
[1750773185874,1.01798237,104950.0,104940.0,1.11853403]
[1750773186093,1.03703751,104950.0,104940.0,0.88253403]
[1750773186317,1.0560932,104950.0,104940.0,1.08203403]
[1750773186523,1.0560932,104950.0,104940.0,1.10103403]
[1750773186524,0.502,104950.0,104940.0,1.10103403]
[1750773186731,0.52035945,104950.0,104940.0,1.08203403]
[1750773186911,0.502,104950.0,104940.0,1.08203403]
[1750773187064,1.03703797,104950.0,104940.0,1.23203403]
[1750773187270,1.05609438,104950.0,104940.0,1.11747476]
[1750773187496,1.04656613,104950.0,104940.0,1.12700337]
[1750773187701,1.03703797,104950.0,104940.0,1.12700337]
[1750773187862,1.04656604,104950.0,104940.0,1.12700337]
[1750773188218,1.0560942,104950.0,104940.0,1.12700337]
[1750773188418,1.0560942,104950.0,104940.0,0.95724337]
[1750773188622,1.0560942,104950.0,104940.0,1.12700337]
[1750773188780,1.01798237,104950.0,104940.0,1.12700337]
[1750773189027,0.502,104950.0,104940.0,1.25910523]
[1750773192246,0.502,104950.0,104940.0,1.00390523]
[1750773192449,0.502,104950.0,104940.0,1.25960523]
[1750773192893,0.502,104950.0,104940.0,1.04100523]
[1750773193158,0.502,104950.0,104940.0,1.25960523]
[1750773196483,0.502,104950.0,104940.0,2.0255876]
[1750773196689,0.502,104950.0,104940.0,2.14012845]
[1750773197516,0.501,104950.0,104940.0,2.13912845]
[1750773197717,0.511,104950.0,104940.0,2.13612845]
[1750773197915,0.511,104950.0,104940.0,2.52612845]
[1750773198127,0.511264,104950.0,104940.0,2.52812845]
[1750773198329,0.43179476,104950.0,104940.0,2.54716845]
[1750773198529,0.002,104970.0,104960.0,1.13367084]
[1750773198736,0.002,104970.0,104960.0,2.06487507]
[1750773198905,0.002,104970.0,104960.0,2.01487507]
[1750773199151,0.002,104970.0,104960.0,1.91363507]
[1750773200718,0.019,104970.0,104960.0,1.3996527]
[1750773201068,0.019,104970.0,104960.0,0.83507185]
[1750773201267,0.019,104970.0,104960.0,1.38507185]
[1750773202997,0.027,104970.0,104960.0,1.38607185]
[1750773203356,0.027,104970.0,104960.0,1.90205422]
[1750773203726,0.027,104970.0,104960.0,1.38607185]
[1750773203940,0.027,104970.0,104960.0,1.13607185]
[1750773204362,0.027,104970.0,104960.0,0.83607185]
[1750773204568,0.027,104970.0,104960.0,1.13607185]
[1750773206414,0.0454,104970.0,104960.0,0.96639185]
[1750773206629,0.0634,104970.0,104960.0,1.13603185]
[1750773208148,0.027,104970.0,104960.0,1.13603185]
[1750773208745,0.0454,104970.0,104960.0,1.13603185]
[1750773208956,0.062,104970.0,104960.0,0.83603185]
[1750773209181,0.062,104970.0,104960.0,1.13599185]
[1750773209368,0.062,104970.0,104960.0,1.03599185]
[1750773209585,0.0715258,104970.0,104960.0,1.03599185]
[1750773209771,0.08105187,104970.0,104960.0,1.03599185]
[1750773209947,0.06405178,104970.0,104960.0,1.03399185]
[1750773210155,0.06405178,104970.0,104960.0,0.44650186]
[1750773210156,0.57553062,104970.0,104960.0,0.44650186]
[1750773210360,1.1105654,104970.0,104960.0,0.41936]
[1750773210630,1.1391814,104970.0,104960.0,0.21936]
[1750773210935,1.13777866,104970.0,104950.0,0.35]
[1750773211080,1.0913584,104960.0,104950.0,0.35]
[1750773211293,1.0913584,104960.0,104950.0,0.56836]
[1750773211491,1.1104129,104960.0,104950.0,0.77798334]
[1750773211997,0.3753,104960.0,104950.0,0.89254089]
[1750773212206,0.3753,104960.0,104950.0,0.89954089]
[1750773212831,0.0353,104960.0,104950.0,0.89254089]
[1750773213050,0.0373,104960.0,104950.0,0.89254089]
[1750773213263,0.0373,104960.0,104950.0,0.89250089]
[1750773213871,0.0373,104960.0,104950.0,0.89254089]
[1750773214538,0.0393,104960.0,104950.0,0.90854089]
[1750773214742,0.0373,104960.0,104950.0,0.89254089]
[1750773214947,0.0383,104960.0,104950.0,0.89954089]
[1750773217114,0.0363,104960.0,104950.0,0.89954089]
[1750773217340,0.0363,104960.0,104950.0,0.90154089]
[1750773219526,0.001,104960.0,104950.0,0.90154089]
[1750773219733,0.001,104960.0,104950.0,1.41752326]
[1750773220139,0.001,104960.0,104950.0,0.90154089]
[1750773221309,0.001,104960.0,104950.0,1.41752326]
[1750773223546,0.001,104960.0,104950.0,1.43406411]
[1750773223966,0.001,104960.0,104950.0,1.43206411]
[1750773224822,0.001,104960.0,104950.0,0.75142089]
[1750773224823,0.0353,104960.0,104950.0,0.75142089]
[1750773224992,0.0353,104960.0,104950.0,1.05142089]
[1750773226870,0.0353,104960.0,104950.0,0.83318089]
[1750773227071,0.0353,104960.0,104950.0,1.05142089]
[1750773229129,0.0353,104960.0,104950.0,0.88178089]
[1750773229342,0.55128237,104960.0,104950.0,1.05122089]
[1750773229762,0.04482671,104960.0,104950.0,1.05122089]
[1750773230324,0.04482671,104960.0,104950.0,0.75122089]
[1750773230434,1.10088475,104960.0,104950.0,0.30450186]
[1750773230677,0.9863064,104960.0,104950.0,0.64619087]
[1750773230888,0.99583374,104960.0,104950.0,0.64619087]
[1750773231095,1.19590995,104960.0,104950.0,0.64619105]
[1750773231300,1.18638252,104960.0,104950.0,0.65571876]
[1750773231506,1.19590995,104960.0,104950.0,0.65571876]
[1750773231718,0.99583374,104960.0,104950.0,0.65571876]
[1750773231931,1.18638252,104960.0,104950.0,0.64619105]
[1750773232139,1.18638252,104960.0,104950.0,0.62713518]
[1750773232359,1.18638252,104960.0,104950.0,0.63666334]
[1750773232568,1.18638252,104960.0,104950.0,0.62713518]
[1750773232775,1.17685554,104960.0,104950.0,0.63666316]
[1750773233033,1.17685554,104960.0,104950.0,0.64619105]
[1750773233246,1.17685554,104960.0,104950.0,0.42815105]
[1750773233457,1.10088574,104960.0,104950.0,0.65567885]
[1750773233666,0.9103366,104960.0,104950.0,0.66520656]
[1750773233867,0.93955728,104960.0,104950.0,0.66520656]
[1750773234063,0.9490839,104960.0,104950.0,0.66520656]
[1750773234467,0.9490839,104960.0,104950.0,0.76070842]
[1750773234468,0.4235741,104960.0,104950.0,0.76070842]
[1750773234671,0.3753,104960.0,104950.0,0.91070842]
[1750773235109,0.3753,104960.0,104950.0,1.06070842]
[1750773236374,0.56584878,104960.0,104950.0,0.38240096]
[1750773236577,0.40478648,104940.0,104930.0,0.21925263]
[1750773236876,0.90171089,104940.0,104930.0,0.20033181]
[1750773237061,1.12088246,104940.0,104930.0,0.15019849]
[1750773237309,1.1356412,104940.0,104930.0,0.00019849]
[1750773237531,1.14520879,104940.0,104930.0,0.00019849]
[1750773238389,1.14620879,104940.0,104930.0,0.00719849]
[1750773239915,1.14820879,104940.0,104930.0,0.00919849]
[1750773240115,1.14520879,104940.0,104930.0,0.00019849]
[1750773240325,1.14520879,104940.0,104930.0,0.00219849]
[1750773240533,1.14820879,104940.0,104930.0,0.05483849]
[1750773240802,1.14820879,104940.0,104910.0,0.70970234]
[1750773240803,0.21921326,104920.0,104910.0,0.70970234]
[1750773241018,0.26494405,104920.0,104910.0,0.64613539]
[1750773241221,1.10186565,104920.0,104910.0,0.20046235]
[1750773241433,1.10186565,104920.0,104910.0,0.42799432]